[Event "Titled Tuesday Blitz September 27 Early 2022"]
[White "Lorenzo De La Riva, Lazaro"]
[Black "Guz, Ari"]
[WhiteFideId "2268809"]
[BlackFideId "2825759"]
[WhiteElo "2325"]
[BlackElo "1913"]
[Result "0-1"]
[Round "05"]
[TimeControl "180+1"]
[Date "2022.09.27"]
[WhiteClock "0:00:16"]
[BlackClock "0:00:54"]

1. e4 {[%clk 0:03:00]}  c6 {[%clk 0:02:44]} 2. d4 {[%clk 0:02:59]}  d6 {[%clk 0:02:43]} 3. Nf3 {[%clk 0:02:58]}  g6 {[%clk 0:02:37]} 4. Nc3 {[%clk 0:02:54]}  Bg7 {[%clk 0:02:37]} 5. Bc4 {[%clk 0:02:48]}  Bg4 {[%clk 0:02:38]} 6. h3 {[%clk 0:02:47]}  Bxf3 {[%clk 0:02:35]} 7. Qxf3 {[%clk 0:02:48]}  e6 {[%clk 0:02:36]} 8. Be3 {[%clk 0:02:43]}  Ne7 {[%clk 0:02:33]} 9. O-O-O {[%clk 0:02:36]}  Nd7 {[%clk 0:02:32]} 10. h4 {[%clk 0:02:26]}  h6 {[%clk 0:02:26]} 11. h5 {[%clk 0:02:02]}  g5 {[%clk 0:02:25]} 12. Rhe1 {[%clk 0:01:35]}  Qa5 {[%clk 0:02:21]} 13. Kb1 {[%clk 0:01:33]}  b5 {[%clk 0:02:13]} 14. Bb3 {[%clk 0:01:29]}  Nb6 {[%clk 0:02:14]} 15. e5 {[%clk 0:01:22]}  d5 {[%clk 0:02:07]} 16. Bd2 {[%clk 0:01:04]}  Qa6 {[%clk 0:01:56]} 17. Qe2 {[%clk 0:00:49]}  Nf5 {[%clk 0:01:48]} 18. Be3 {[%clk 0:00:44]}  Nc4 {[%clk 0:01:48]} 19. g4 {[%clk 0:00:42]}  Nfxe3 {[%clk 0:01:47]} 20. fxe3 {[%clk 0:00:43]}  O-O {[%clk 0:01:45]} 21. e4 {[%clk 0:00:41]}  Qb6 {[%clk 0:01:43]} 22. Rd3 {[%clk 0:00:25]}  a5 {[%clk 0:01:40]} 23. Rf3 {[%clk 0:00:23]}  Qxd4 {[%clk 0:01:32]} 24. exd5 {[%clk 0:00:20]}  cxd5 {[%clk 0:01:31]} 25. Rd3 {[%clk 0:00:18]}  Qb6 {[%clk 0:01:29]} 26. Rf1 {[%clk 0:00:14]}  a4 {[%clk 0:01:27]} 27. Bxc4 {[%clk 0:00:14]}  bxc4 {[%clk 0:01:27]} 28. Rdf3 {[%clk 0:00:14]}  Rab8 {[%clk 0:01:25]} 29. Nd1 {[%clk 0:00:14]}  Qc7 {[%clk 0:01:23]} 30. Rc3 {[%clk 0:00:13]}  Qxe5 {[%clk 0:01:21]} 31. Qxe5 {[%clk 0:00:13]}  Bxe5 {[%clk 0:01:22]} 32. Re3 {[%clk 0:00:13]}  Bg7 {[%clk 0:01:19]} 33. Ra3 {[%clk 0:00:13]}  Rb7 {[%clk 0:01:12]} 34. Rxa4 {[%clk 0:00:12]}  Bxb2 {[%clk 0:01:13]} 35. Nxb2 {[%clk 0:00:11]}  Rfb8 {[%clk 0:01:13]} 36. Kc1 {[%clk 0:00:10]}  c3 {[%clk 0:00:54]} 37. Rf3 {[%clk 0:00:08]}  cxb2+ {[%clk 0:00:55]} 38. Kb1 {[%clk 0:00:08]}  Rb4 {[%clk 0:00:56]} 39. Rb3 {[%clk 0:00:06]}  Rxa4 {[%clk 0:00:54]} 40. Rxb8+ {[%clk 0:00:06]}  Kg7 {[%clk 0:00:55]} 41. Rxb2 {[%clk 0:00:06]}  Rxg4 {[%clk 0:00:56]} 42. Rb3 {[%clk 0:00:05]}  Ra4 {[%clk 0:00:56]} 43. Kb2 {[%clk 0:00:05]}  g4 {[%clk 0:00:54]} 44. Rg3 {[%clk 0:00:04]}  f5 {[%clk 0:00:54]} 45. Kb3 {[%clk 0:00:05]}  Ra7 {[%clk 0:00:50]} 46. a4 {[%clk 0:00:05]}  Kf6 {[%clk 0:00:50]} 47. Kb4 {[%clk 0:00:05]}  Kg5 {[%clk 0:00:51]} 48. Kb5 {[%clk 0:00:06]}  f4 {[%clk 0:00:51]} 49. Rg1 {[%clk 0:00:06]}  f3 {[%clk 0:00:51]} 50. a5 {[%clk 0:00:06]}  f2 {[%clk 0:00:51]} 51. Rf1 {[%clk 0:00:07]}  g3 {[%clk 0:00:52]} 52. Kb6 {[%clk 0:00:08]}  Rxa5 {[%clk 0:00:48]} 53. Kxa5 {[%clk 0:00:09]}  g2 {[%clk 0:00:48]} 54. Rxf2 {[%clk 0:00:09]}  g1=Q {[%clk 0:00:49]} 55. Re2 {[%clk 0:00:09]}  Qc5+ {[%clk 0:00:49]} 56. Ka6 {[%clk 0:00:10]}  Qc4+ {[%clk 0:00:50]} 57. Ka7 {[%clk 0:00:10]}  Qxe2 {[%clk 0:00:51]} 58. c4 {[%clk 0:00:11]}  Qxc4 {[%clk 0:00:51]} 59. Ka8 {[%clk 0:00:11]}  Qb5 {[%clk 0:00:50]} 60. Ka7 {[%clk 0:00:12]}  Kf6 {[%clk 0:00:50]} 61. Ka8 {[%clk 0:00:13]}  Ke7 {[%clk 0:00:51]} 62. Ka7 {[%clk 0:00:14]}  Kd6 {[%clk 0:00:52]} 63. Ka8 {[%clk 0:00:15]}  Kc6 {[%clk 0:00:53]} 64. Ka7 {[%clk 0:00:16]}  Qb7# {[%clk 0:00:54]} 0-1


[Site "https://www.chess.com"]

[Event "Titled Tuesday Blitz September 27 Early 2022"]
[White "Luxama, Jacques Muller"]
[Black "Shapiro, Daniel"]
[WhiteFideId "11900113"]
[BlackFideId "2001780"]
[WhiteElo "1931"]
[BlackElo "2215"]
[Result "0-1"]
[Round "05"]
[TimeControl "180+1"]
[Date "2022.09.27"]
[WhiteClock "0:00:03"]
[BlackClock "0:00:09"]

1. e4 {[%clk 0:02:59]}  c5 {[%clk 0:00:53]} 2. Nc3 {[%clk 0:02:53]}  a6 {[%clk 0:00:52]} 3. f4 {[%clk 0:02:53]}  b5 {[%clk 0:00:51]} 4. Nf3 {[%clk 0:02:53]}  e6 {[%clk 0:00:52]} 5. d3 {[%clk 0:02:52]}  Bb7 {[%clk 0:00:52]} 6. Be2 {[%clk 0:02:52]}  b4 {[%clk 0:00:51]} 7. Nb1 {[%clk 0:02:52]}  d5 {[%clk 0:00:51]} 8. Nbd2 {[%clk 0:02:48]}  g6 {[%clk 0:00:49]} 9. O-O {[%clk 0:02:45]}  Ne7 {[%clk 0:00:49]} 10. a3 {[%clk 0:02:31]}  a5 {[%clk 0:00:48]} 11. axb4 {[%clk 0:02:31]}  axb4 {[%clk 0:00:49]} 12. Rxa8 {[%clk 0:02:31]}  Bxa8 {[%clk 0:00:50]} 13. c3 {[%clk 0:02:18]}  bxc3 {[%clk 0:00:48]} 14. bxc3 {[%clk 0:02:19]}  Bg7 {[%clk 0:00:48]} 15. Qc2 {[%clk 0:02:19]}  Qb6 {[%clk 0:00:48]} 16. Kh1 {[%clk 0:02:17]}  O-O {[%clk 0:00:48]} 17. e5 {[%clk 0:01:54]}  Nbc6 {[%clk 0:00:48]} 18. Ba3 {[%clk 0:01:45]}  Nf5 {[%clk 0:00:47]} 19. Rb1 {[%clk 0:01:40]}  Qa7 {[%clk 0:00:44]} 20. Qc1 {[%clk 0:01:35]}  Rc8 {[%clk 0:00:44]} 21. Ra1 {[%clk 0:01:03]}  Qb6 {[%clk 0:00:43]} 22. Rb1 {[%clk 0:01:02]}  Qa5 {[%clk 0:00:42]} 23. Ra1 {[%clk 0:00:53]}  f6 {[%clk 0:00:41]} 24. c4 {[%clk 0:00:41]}  fxe5 {[%clk 0:00:38]} 25. fxe5 {[%clk 0:00:40]}  Nxe5 {[%clk 0:00:37]} 26. Nxe5 {[%clk 0:00:38]}  Bxe5 {[%clk 0:00:36]} 27. Rb1 {[%clk 0:00:38]}  Qc7 {[%clk 0:00:35]} 28. Nf3 {[%clk 0:00:36]}  Bf4 {[%clk 0:00:35]} 29. Qb2 {[%clk 0:00:29]}  d4 {[%clk 0:00:31]} 30. Qb6 {[%clk 0:00:21]}  Kf7 {[%clk 0:00:20]} 31. Qxc7+ {[%clk 0:00:20]}  Rxc7 {[%clk 0:00:19]} 32. Rb5 {[%clk 0:00:18]}  Bd6 {[%clk 0:00:17]} 33. Ng5+ {[%clk 0:00:13]}  Ke7 {[%clk 0:00:17]} 34. Bf3 {[%clk 0:00:09]}  Bxf3 {[%clk 0:00:15]} 35. Nxf3 {[%clk 0:00:10]}  h6 {[%clk 0:00:15]} 36. Nd2 {[%clk 0:00:07]}  Kd7 {[%clk 0:00:12]} 37. Ne4 {[%clk 0:00:06]}  Be7 {[%clk 0:00:12]} 38. Nxc5+ {[%clk 0:00:04]}  Ke8 {[%clk 0:00:10]} 39. Nxe6 {[%clk 0:00:03]}  Ra7 {[%clk 0:00:09]} 0-1


[Site "https://www.chess.com"]

[Event "Titled Tuesday Blitz September 27 Early 2022"]
[White "Madaminov, Mukhiddin"]
[Black "Sharifov, Mekhriddin"]
[WhiteFideId "14210703"]
[BlackFideId "14701545"]
[WhiteElo "2106"]
[BlackElo "1540"]
[Result "0-1"]
[Round "05"]
[TimeControl "180+1"]
[Date "2022.09.27"]
[WhiteClock "0:00:04"]
[BlackClock "0:00:04"]

1. d4 {[%clk 0:03:00]}  Nf6 {[%clk 0:02:28]} 2. Nc3 {[%clk 0:02:53]}  d5 {[%clk 0:02:27]} 3. Bf4 {[%clk 0:02:53]}  Bf5 {[%clk 0:02:26]} 4. f3 {[%clk 0:02:54]}  h6 {[%clk 0:02:22]} 5. g4 {[%clk 0:02:53]}  Bh7 {[%clk 0:02:23]} 6. h4 {[%clk 0:02:53]}  e6 {[%clk 0:02:21]} 7. e3 {[%clk 0:02:51]}  a6 {[%clk 0:02:20]} 8. Bd3 {[%clk 0:02:51]}  Bxd3 {[%clk 0:02:19]} 9. Qxd3 {[%clk 0:02:52]}  c5 {[%clk 0:02:20]} 10. Nge2 {[%clk 0:02:51]}  Nc6 {[%clk 0:02:20]} 11. O-O-O {[%clk 0:02:52]}  c4 {[%clk 0:02:05]} 12. Qd2 {[%clk 0:02:50]}  b5 {[%clk 0:02:05]} 13. g5 {[%clk 0:02:50]}  b4 {[%clk 0:01:56]} 14. gxf6 {[%clk 0:02:44]}  bxc3 {[%clk 0:01:56]} 15. Nxc3 {[%clk 0:02:45]}  Qxf6 {[%clk 0:01:47]} 16. e4 {[%clk 0:02:43]}  Bb4 {[%clk 0:01:42]} 17. Qe3 {[%clk 0:01:12]}  Bxc3 {[%clk 0:01:37]} 18. bxc3 {[%clk 0:01:10]}  O-O {[%clk 0:01:32]} 19. Rdg1 {[%clk 0:01:07]}  e5 {[%clk 0:00:35]} 20. Bxh6 {[%clk 0:01:03]}  exd4 {[%clk 0:00:36]} 21. cxd4 {[%clk 0:00:50]}  g6 {[%clk 0:00:36]} 22. Bxf8 {[%clk 0:00:43]}  Rxf8 {[%clk 0:00:16]} 23. c3 {[%clk 0:00:40]}  Rb8 {[%clk 0:00:12]} 24. Kc2 {[%clk 0:00:28]}  Ne7 {[%clk 0:00:06]} 25. h5 {[%clk 0:00:24]}  dxe4 {[%clk 0:00:06]} 26. fxe4 {[%clk 0:00:22]}  Qc6 {[%clk 0:00:05]} 27. Rc1 {[%clk 0:00:02]}  Qa4+ {[%clk 0:00:05]} 28. Kd2 {[%clk 0:00:03]}  Rb2+ {[%clk 0:00:05]} 29. Ke1 {[%clk 0:00:04]}  Qxa2 {[%clk 0:00:06]} 30. hxg6 {[%clk 0:00:03]}  Nxg6 {[%clk 0:00:06]} 31. Qf3 {[%clk 0:00:03]}  Rd2 {[%clk 0:00:03]} 32. Rf1 {[%clk 0:00:03]}  Rh2 {[%clk 0:00:03]} 33. Qxf7+ {[%clk 0:00:03]}  Kh8 {[%clk 0:00:04]} 34. Qe8+ {[%clk 0:00:03]}  Kh7 {[%clk 0:00:04]} 35. Qf7+ {[%clk 0:00:04]}  Kh6 {[%clk 0:00:05]} 36. Qf3 {[%clk 0:00:04]}  Qd2# {[%clk 0:00:04]} 0-1


[Site "https://www.chess.com"]

[Event "Titled Tuesday Blitz September 27 Early 2022"]
[White "Martin Duque, Jesus"]
[Black "Skuhala, Barbara"]
[WhiteFideId "2208954"]
[BlackFideId "14605465"]
[WhiteElo "2258"]
[BlackElo "2155"]
[Result "1-0"]
[Round "05"]
[TimeControl "180+1"]
[Date "2022.09.27"]
[WhiteClock "0:00:14"]
[BlackClock "0:00:13"]

1. Nf3 {[%clk 0:02:54]}  Nf6 {[%clk 0:02:58]} 2. b3 {[%clk 0:02:54]}  d5 {[%clk 0:02:58]} 3. Bb2 {[%clk 0:02:52]}  e6 {[%clk 0:02:58]} 4. g3 {[%clk 0:02:52]}  c5 {[%clk 0:02:58]} 5. Bg2 {[%clk 0:02:53]}  Be7 {[%clk 0:02:58]} 6. O-O {[%clk 0:02:53]}  O-O {[%clk 0:02:57]} 7. e3 {[%clk 0:02:53]}  Nc6 {[%clk 0:02:57]} 8. d4 {[%clk 0:02:51]}  b6 {[%clk 0:02:57]} 9. Qe2 {[%clk 0:02:50]}  Bb7 {[%clk 0:02:57]} 10. Rd1 {[%clk 0:02:50]}  Rc8 {[%clk 0:02:56]} 11. c4 {[%clk 0:02:49]}  Qc7 {[%clk 0:02:56]} 12. dxc5 {[%clk 0:02:48]}  bxc5 {[%clk 0:02:55]} 13. cxd5 {[%clk 0:02:48]}  exd5 {[%clk 0:02:53]} 14. Nc3 {[%clk 0:02:47]}  Rfd8 {[%clk 0:02:53]} 15. Rac1 {[%clk 0:02:47]}  Nb4 {[%clk 0:02:49]} 16. a3 {[%clk 0:02:42]}  Ba6 {[%clk 0:02:49]} 17. Nb5 {[%clk 0:02:38]}  Qb6 {[%clk 0:02:44]} 18. Bf1 {[%clk 0:02:30]}  Nc6 {[%clk 0:02:39]} 19. Ne5 {[%clk 0:02:17]}  Rb8 {[%clk 0:02:34]} 20. a4 {[%clk 0:02:15]}  Na5 {[%clk 0:02:26]} 21. Qc2 {[%clk 0:02:08]}  Rdc8 {[%clk 0:02:15]} 22. Ba3 {[%clk 0:01:19]}  Bf8 {[%clk 0:02:02]} 23. Bh3 {[%clk 0:01:10]}  Bxb5 {[%clk 0:01:50]} 24. Bxc8 {[%clk 0:01:06]}  Rxc8 {[%clk 0:01:28]} 25. axb5 {[%clk 0:01:05]}  Qxb5 {[%clk 0:01:28]} 26. Rb1 {[%clk 0:01:02]}  Rb8 {[%clk 0:01:25]} 27. Nd3 {[%clk 0:00:50]}  Nd7 {[%clk 0:01:12]} 28. b4 {[%clk 0:00:47]}  cxb4 {[%clk 0:01:11]} 29. Bxb4 {[%clk 0:00:48]}  Qa6 {[%clk 0:01:00]} 30. Bxf8 {[%clk 0:00:36]}  Rxf8 {[%clk 0:01:00]} 31. Qc7 {[%clk 0:00:30]}  Nb6 {[%clk 0:00:55]} 32. Nc5 {[%clk 0:00:29]}  Qe2 {[%clk 0:00:49]} 33. Qxa7 {[%clk 0:00:27]}  Nbc4 {[%clk 0:00:49]} 34. Nd7 {[%clk 0:00:25]}  Rd8 {[%clk 0:00:42]} 35. Rxd5 {[%clk 0:00:21]}  Re8 {[%clk 0:00:33]} 36. Rxa5 {[%clk 0:00:20]}  Nxa5 {[%clk 0:00:30]} 37. Qxa5 {[%clk 0:00:20]}  Qd3 {[%clk 0:00:30]} 38. Qb5 {[%clk 0:00:19]}  Qe4 {[%clk 0:00:29]} 39. Nc5 {[%clk 0:00:17]}  Qe7 {[%clk 0:00:29]} 40. Qd7 {[%clk 0:00:16]}  Qe5 {[%clk 0:00:28]} 41. Rd1 {[%clk 0:00:15]}  h6 {[%clk 0:00:26]} 42. Qd5 {[%clk 0:00:15]}  Qe7 {[%clk 0:00:25]} 43. Kg2 {[%clk 0:00:15]}  Rf8 {[%clk 0:00:22]} 44. Rd4 {[%clk 0:00:15]}  Rc8 {[%clk 0:00:21]} 45. Nd7 {[%clk 0:00:14]}  Kh7 {[%clk 0:00:17]} 46. Ne5 {[%clk 0:00:14]}  Rf8 {[%clk 0:00:16]} 47. Rf4 {[%clk 0:00:14]}  f6 {[%clk 0:00:15]} 48. Qd3+ {[%clk 0:00:14]}  Kg8 {[%clk 0:00:13]} 49. Qd5+ {[%clk 0:00:13]}  Kh7 {[%clk 0:00:13]} 50. Qe4+ {[%clk 0:00:13]}  Kg8 {[%clk 0:00:13]} 51. Ng6 {[%clk 0:00:13]}  Qxe4+ {[%clk 0:00:12]} 52. Rxe4 {[%clk 0:00:14]}  Rf7 {[%clk 0:00:12]} 53. h4 {[%clk 0:00:14]}  Kh7 {[%clk 0:00:12]} 54. h5 {[%clk 0:00:14]}  f5 {[%clk 0:00:13]} 55. Re8 {[%clk 0:00:14]} 1-0


[Site "https://www.chess.com"]

[Event "Titled Tuesday Blitz September 27 Early 2022"]
[White "Matveeva, Olga"]
[Black "Fernandez Hernandez, Gerardo"]
[WhiteFideId "24107018"]
[BlackFideId "2207400"]
[WhiteElo "2056"]
[BlackElo "2179"]
[Result "1-0"]
[Round "05"]
[TimeControl "180+1"]
[Date "2022.09.27"]
[WhiteClock "0:00:56"]
[BlackClock "0:00:02"]

1. d4 {[%clk 0:03:00]}  Nf6 {[%clk 0:02:58]} 2. c4 {[%clk 0:02:59]}  c5 {[%clk 0:02:57]} 3. d5 {[%clk 0:02:59]}  b5 {[%clk 0:02:55]} 4. cxb5 {[%clk 0:02:59]}  a6 {[%clk 0:02:55]} 5. bxa6 {[%clk 0:03:00]}  g6 {[%clk 0:02:54]} 6. Nc3 {[%clk 0:03:00]}  Bg7 {[%clk 0:02:54]} 7. Nf3 {[%clk 0:03:00]}  O-O {[%clk 0:02:53]} 8. g3 {[%clk 0:03:01]}  d6 {[%clk 0:02:49]} 9. Bg2 {[%clk 0:03:00]}  Nxa6 {[%clk 0:02:46]} 10. O-O {[%clk 0:03:00]}  Qb6 {[%clk 0:02:36]} 11. Rb1 {[%clk 0:02:58]}  Bf5 {[%clk 0:02:24]} 12. Ra1 {[%clk 0:02:57]}  Rfb8 {[%clk 0:02:23]} 13. Re1 {[%clk 0:02:55]}  Nb4 {[%clk 0:02:07]} 14. e4 {[%clk 0:02:53]}  Bg4 {[%clk 0:02:05]} 15. h3 {[%clk 0:02:47]}  Bxf3 {[%clk 0:02:03]} 16. Bxf3 {[%clk 0:02:48]}  Nd7 {[%clk 0:01:59]} 17. Be2 {[%clk 0:02:36]}  Ne5 {[%clk 0:01:36]} 18. Kg2 {[%clk 0:02:35]}  c4 {[%clk 0:01:30]} 19. Be3 {[%clk 0:02:31]}  Qb7 {[%clk 0:01:25]} 20. Qd2 {[%clk 0:01:46]}  Nbd3 {[%clk 0:00:47]} 21. Reb1 {[%clk 0:01:35]}  Nxb2 {[%clk 0:00:40]} 22. Bd4 {[%clk 0:01:30]}  Nd7 {[%clk 0:00:16]} 23. Bxg7 {[%clk 0:01:28]}  Kxg7 {[%clk 0:00:17]} 24. Nd1 {[%clk 0:01:24]}  c3 {[%clk 0:00:11]} 25. Qxc3+ {[%clk 0:01:22]}  f6 {[%clk 0:00:09]} 26. Rxb2 {[%clk 0:01:20]}  Qa7 {[%clk 0:00:07]} 27. Rxb8 {[%clk 0:01:17]}  Rxb8 {[%clk 0:00:07]} 28. a4 {[%clk 0:01:15]}  Nc5 {[%clk 0:00:06]} 29. Bf3 {[%clk 0:01:04]}  Rb3 {[%clk 0:00:03]} 30. Qd4 {[%clk 0:00:59]}  Qa5 {[%clk 0:00:02]} 31. Ne3 {[%clk 0:00:56]} 1-0


[Site "https://www.chess.com"]

[Event "Titled Tuesday Blitz September 27 Early 2022"]
[White "Meshkovs, Nikita"]
[Black "Shuvalov, Evgenij"]
[WhiteFideId "11602740"]
[BlackFideId "4187237"]
[WhiteElo "2746"]
[BlackElo "2564"]
[Result "1-0"]
[Round "05"]
[TimeControl "180+1"]
[Date "2022.09.27"]
[WhiteClock "0:00:24"]
[BlackClock "0:00:03"]

1. c4 {[%clk 0:03:00]}  c6 {[%clk 0:02:52]} 2. Nf3 {[%clk 0:02:54]}  d5 {[%clk 0:02:51]} 3. e3 {[%clk 0:02:55]}  Nf6 {[%clk 0:02:50]} 4. Nc3 {[%clk 0:02:55]}  a6 {[%clk 0:02:50]} 5. d4 {[%clk 0:02:54]}  Bf5 {[%clk 0:02:41]} 6. Qb3 {[%clk 0:02:44]}  b5 {[%clk 0:02:31]} 7. cxd5 {[%clk 0:02:43]}  cxd5 {[%clk 0:02:31]} 8. a4 {[%clk 0:02:44]}  b4 {[%clk 0:02:31]} 9. Qxb4 {[%clk 0:02:39]}  Nc6 {[%clk 0:02:19]} 10. Qc5 {[%clk 0:02:02]}  Bd7 {[%clk 0:01:44]} 11. Ne5 {[%clk 0:01:59]}  e6 {[%clk 0:01:22]} 12. Nxc6 {[%clk 0:01:58]}  Qc7 {[%clk 0:01:19]} 13. Ne7 {[%clk 0:01:51]}  Qb7 {[%clk 0:01:04]} 14. Qd6 {[%clk 0:01:33]}  Bxe7 {[%clk 0:01:02]} 15. Qg3 {[%clk 0:01:34]}  O-O {[%clk 0:00:58]} 16. Bd3 {[%clk 0:01:34]}  Ne4 {[%clk 0:00:51]} 17. Qh3 {[%clk 0:01:26]}  e5 {[%clk 0:00:42]} 18. Qh5 {[%clk 0:01:25]}  exd4 {[%clk 0:00:34]} 19. Nxd5 {[%clk 0:01:15]}  Bb4+ {[%clk 0:00:31]} 20. Kf1 {[%clk 0:01:13]}  g6 {[%clk 0:00:19]} 21. Bxe4 {[%clk 0:01:12]}  gxh5 {[%clk 0:00:10]} 22. Nf6+ {[%clk 0:01:13]}  Kg7 {[%clk 0:00:10]} 23. Nxh5+ {[%clk 0:01:13]}  Kh6 {[%clk 0:00:10]} 24. exd4+ {[%clk 0:01:13]}  Kxh5 {[%clk 0:00:09]} 25. Bxb7 {[%clk 0:01:14]}  Rab8 {[%clk 0:00:09]} 26. Bxa6 {[%clk 0:01:07]}  Bf5 {[%clk 0:00:08]} 27. Bf4 {[%clk 0:01:01]}  Rb6 {[%clk 0:00:07]} 28. Bb5 {[%clk 0:00:56]}  Kg6 {[%clk 0:00:07]} 29. f3 {[%clk 0:00:53]}  Rc8 {[%clk 0:00:06]} 30. Rc1 {[%clk 0:00:51]}  Rxc1+ {[%clk 0:00:06]} 31. Bxc1 {[%clk 0:00:52]}  Rd6 {[%clk 0:00:04]} 32. Be3 {[%clk 0:00:52]}  Be6 {[%clk 0:00:04]} 33. Kf2 {[%clk 0:00:53]}  Kg7 {[%clk 0:00:04]} 34. Rc1 {[%clk 0:00:52]}  Bd5 {[%clk 0:00:03]} 35. Bf4 {[%clk 0:00:52]}  Re6 {[%clk 0:00:03]} 36. Be5+ {[%clk 0:00:52]}  f6 {[%clk 0:00:03]} 37. Rc7+ {[%clk 0:00:52]}  Kg6 {[%clk 0:00:02]} 38. Bd3+ {[%clk 0:00:53]}  f5 {[%clk 0:00:02]} 39. Rg7+ {[%clk 0:00:53]}  Kh6 {[%clk 0:00:02]} 40. Bxf5 {[%clk 0:00:52]}  Rxe5 {[%clk 0:00:02]} 41. Rxh7+ {[%clk 0:00:52]}  Kg5 {[%clk 0:00:03]} 42. dxe5 {[%clk 0:00:52]}  Kxf5 {[%clk 0:00:03]} 43. Rh5+ {[%clk 0:00:48]}  Ke6 {[%clk 0:00:03]} 44. g4 {[%clk 0:00:47]}  Bc5+ {[%clk 0:00:03]} 45. Kg3 {[%clk 0:00:47]}  Bb4 {[%clk 0:00:02]} 46. f4 {[%clk 0:00:42]}  Be1+ {[%clk 0:00:02]} 47. Kh3 {[%clk 0:00:43]}  Bc4 {[%clk 0:00:02]} 48. Kg2 {[%clk 0:00:38]}  Bd5+ {[%clk 0:00:02]} 49. Kf1 {[%clk 0:00:39]}  Bd2 {[%clk 0:00:02]} 50. Rh6+ {[%clk 0:00:38]}  Ke7 {[%clk 0:00:03]} 51. Rf6 {[%clk 0:00:33]}  Bc4+ {[%clk 0:00:02]} 52. Kf2 {[%clk 0:00:33]}  Bb4 {[%clk 0:00:02]} 53. h4 {[%clk 0:00:33]}  Bc5+ {[%clk 0:00:02]} 54. Kg3 {[%clk 0:00:33]}  Bd4 {[%clk 0:00:02]} 55. h5 {[%clk 0:00:33]}  Bxb2 {[%clk 0:00:02]} 56. a5 {[%clk 0:00:34]}  Bc3 {[%clk 0:00:02]} 57. a6 {[%clk 0:00:31]}  Be1+ {[%clk 0:00:03]} 58. Kh3 {[%clk 0:00:30]}  Bd5 {[%clk 0:00:03]} 59. h6 {[%clk 0:00:30]}  Bf3 {[%clk 0:00:03]} 60. h7 {[%clk 0:00:27]}  Be2 {[%clk 0:00:03]} 61. h8=Q {[%clk 0:00:24]}  Bf1+ {[%clk 0:00:03]} 62. Kh2 {[%clk 0:00:24]} 1-0


[Site "https://www.chess.com"]

[Event "Titled Tuesday Blitz September 27 Early 2022"]
[White "Mikhailovsky, Vladimir"]
[Black "Odegov, Artem"]
[WhiteFideId "34105414"]
[BlackFideId "34183644"]
[WhiteElo "2784"]
[BlackElo "2614"]
[Result "1/2-1/2"]
[Round "05"]
[TimeControl "180+1"]
[Date "2022.09.27"]
[WhiteClock "0:00:12"]
[BlackClock "0:00:09"]

1. e4 {[%clk 0:03:00]}  e6 {[%clk 0:02:58]} 2. Qe2 {[%clk 0:03:00]}  c5 {[%clk 0:02:57]} 3. Nf3 {[%clk 0:03:00]}  Nc6 {[%clk 0:02:55]} 4. g3 {[%clk 0:02:59]}  g6 {[%clk 0:02:52]} 5. Bg2 {[%clk 0:02:59]}  Bg7 {[%clk 0:02:53]} 6. O-O {[%clk 0:02:59]}  Nge7 {[%clk 0:02:53]} 7. c3 {[%clk 0:03:00]}  d5 {[%clk 0:02:53]} 8. exd5 {[%clk 0:02:36]}  Nxd5 {[%clk 0:02:50]} 9. d4 {[%clk 0:02:34]}  cxd4 {[%clk 0:02:49]} 10. Nxd4 {[%clk 0:02:33]}  Nxd4 {[%clk 0:02:48]} 11. cxd4 {[%clk 0:02:34]}  O-O {[%clk 0:02:48]} 12. Nc3 {[%clk 0:02:32]}  Bxd4 {[%clk 0:02:12]} 13. Nxd5 {[%clk 0:02:21]}  exd5 {[%clk 0:02:13]} 14. Bh6 {[%clk 0:02:07]}  Re8 {[%clk 0:01:57]} 15. Qd2 {[%clk 0:02:06]}  Qf6 {[%clk 0:01:44]} 16. Bg5 {[%clk 0:01:30]}  Qg7 {[%clk 0:01:37]} 17. Bh6 {[%clk 0:01:27]}  Qf6 {[%clk 0:01:35]} 18. Bg5 {[%clk 0:01:23]}  Qb6 {[%clk 0:01:15]} 19. Rad1 {[%clk 0:01:19]}  Bg7 {[%clk 0:01:10]} 20. Bxd5 {[%clk 0:01:13]}  Bg4 {[%clk 0:00:59]} 21. Rc1 {[%clk 0:01:00]}  Re2 {[%clk 0:00:54]} 22. Qf4 {[%clk 0:00:49]}  Be6 {[%clk 0:00:53]} 23. Bxe6 {[%clk 0:00:41]}  Qxe6 {[%clk 0:00:54]} 24. Qf3 {[%clk 0:00:26]}  h6 {[%clk 0:00:37]} 25. Be3 {[%clk 0:00:19]}  Rxb2 {[%clk 0:00:36]} 26. Rc7 {[%clk 0:00:20]}  Re8 {[%clk 0:00:23]} 27. Rd1 {[%clk 0:00:20]}  Be5 {[%clk 0:00:10]} 28. Rxb7 {[%clk 0:00:17]}  Rxb7 {[%clk 0:00:11]} 29. Qxb7 {[%clk 0:00:18]}  Qxa2 {[%clk 0:00:10]} 30. Bxh6 {[%clk 0:00:17]}  Bg7 {[%clk 0:00:09]} 31. Bxg7 {[%clk 0:00:14]}  Kxg7 {[%clk 0:00:10]} 32. Qd5 {[%clk 0:00:12]}  Qxd5 {[%clk 0:00:09]} 33. Rxd5 {[%clk 0:00:12]} 1/2-1/2


[Site "https://www.chess.com"]

[Event "Titled Tuesday Blitz September 27 Early 2022"]
[White "Miszler, Levente"]
[Black "Zanette, Edgard Vinicius"]
[WhiteFideId "763276"]
[BlackFideId "2109263"]
[WhiteElo "1966"]
[BlackElo "2182"]
[Result "1-0"]
[Round "05"]
[TimeControl "180+1"]
[Date "2022.09.27"]
[WhiteClock "0:00:34"]
[BlackClock "0:00:08"]

1. Nf3 {[%clk 0:02:57]}  Nf6 {[%clk 0:02:57]} 2. c4 {[%clk 0:02:55]}  e6 {[%clk 0:02:53]} 3. g3 {[%clk 0:02:55]}  d5 {[%clk 0:02:53]} 4. Bg2 {[%clk 0:02:55]}  Be7 {[%clk 0:02:53]} 5. O-O {[%clk 0:02:35]}  O-O {[%clk 0:02:45]} 6. d4 {[%clk 0:02:32]}  a6 {[%clk 0:02:38]} 7. Qc2 {[%clk 0:02:31]}  dxc4 {[%clk 0:02:27]} 8. a4 {[%clk 0:02:30]}  c5 {[%clk 0:02:07]} 9. Qxc4 {[%clk 0:02:24]}  cxd4 {[%clk 0:01:57]} 10. Nxd4 {[%clk 0:02:25]}  Nbd7 {[%clk 0:01:46]} 11. a5 {[%clk 0:02:18]}  Ne5 {[%clk 0:01:40]} 12. Qa4 {[%clk 0:02:12]}  Bd7 {[%clk 0:01:35]} 13. Qd1 {[%clk 0:02:12]}  Qc7 {[%clk 0:01:30]} 14. Nc3 {[%clk 0:02:10]}  Rfd8 {[%clk 0:01:28]} 15. Bf4 {[%clk 0:02:07]}  Nh5 {[%clk 0:01:19]} 16. Bxe5 {[%clk 0:02:01]}  Qxe5 {[%clk 0:01:18]} 17. Nf3 {[%clk 0:02:02]}  Qc7 {[%clk 0:01:14]} 18. Qb3 {[%clk 0:01:59]}  Bc6 {[%clk 0:01:10]} 19. Rac1 {[%clk 0:01:57]}  Qb8 {[%clk 0:00:58]} 20. Rfd1 {[%clk 0:01:50]}  Nf6 {[%clk 0:00:56]} 21. Na4 {[%clk 0:01:39]}  Rxd1+ {[%clk 0:00:50]} 22. Rxd1 {[%clk 0:01:38]}  Qc7 {[%clk 0:00:48]} 23. Nb6 {[%clk 0:01:28]}  Rd8 {[%clk 0:00:48]} 24. Rc1 {[%clk 0:01:28]}  Qd6 {[%clk 0:00:44]} 25. Nc4 {[%clk 0:01:15]}  Qb4 {[%clk 0:00:42]} 26. Qxb4 {[%clk 0:01:07]}  Bxb4 {[%clk 0:00:40]} 27. Nfe5 {[%clk 0:01:07]}  Bxg2 {[%clk 0:00:35]} 28. Kxg2 {[%clk 0:01:08]}  h6 {[%clk 0:00:30]} 29. f3 {[%clk 0:00:48]}  Rd5 {[%clk 0:00:29]} 30. e4 {[%clk 0:00:48]}  Rc5 {[%clk 0:00:29]} 31. Nd3 {[%clk 0:00:45]}  Rb5 {[%clk 0:00:27]} 32. Rc2 {[%clk 0:00:38]}  Bxa5 {[%clk 0:00:21]} 33. Nd6 {[%clk 0:00:37]}  Rb6 {[%clk 0:00:18]} 34. Rc8+ {[%clk 0:00:36]}  Kh7 {[%clk 0:00:17]} 35. Nxf7 {[%clk 0:00:36]}  Kg6 {[%clk 0:00:13]} 36. Nde5+ {[%clk 0:00:36]}  Kh5 {[%clk 0:00:09]} 37. g4+ {[%clk 0:00:33]}  Kh4 {[%clk 0:00:08]} 38. Ng6# {[%clk 0:00:34]} 1-0


[Site "https://www.chess.com"]